fUSD/lending_fUSD_20250623
["ID","MTS","AMOUNT","RATE_DAILY","PERIOD"]
[367175168,1750687846500,-490.0,0.00024657,2]
[367175169,1750687846509,-2447.12,0.00024657,2]
[367175170,1750687846518,-490.0,0.00024657,2]
[367175171,1750687846532,-490.0,0.00024657,2]
[367175172,1750687846541,-493.23,0.00024657,2]
[367175173,1750687846550,-223.72199536,0.00024657,2]
[367175174,1750687846560,-1436.62,0.00024657,2]
[367175175,1750687846570,-445.54528614,0.00024657,2]
[367175176,1750687846580,-490.0,0.00024657,2]
[367175177,1750687846589,-838.12,0.00024657,2]
[367175178,1750687846599,-490.0,0.00024657,2]
[367175179,1750687846608,-490.0,0.00024657,2]
[367175180,1750687846618,-549.59,0.00024657,2]
[367175181,1750687846627,-490.0,0.00024657,2]
[367175182,1750687846638,-668.72,0.00024657,2]
[367175183,1750687846647,-490.0,0.00024657,2]
[367175184,1750687846657,-1453.39,0.00024657,2]
[367175185,1750687846667,-2269.61,0.00024657,2]
[367175186,1750687846677,-1046.72,0.00024657,2]
[367175187,1750687846686,-590.25,0.00024657,2]
[367175188,1750687846695,-502.81455026,0.00024657,2]
[367175189,1750687846705,-490.0,0.00024657,2]
[367175190,1750687846715,-500.0,0.00024657,2]
[367175191,1750687846724,-401.26,0.00024657,2]
[367175192,1750687846734,-538.24,0.00024657,2]
[367175193,1750687846743,-759.95,0.00024657,2]
[367175194,1750687846753,-2489.71,0.00024657,2]
[367175195,1750687846763,-490.0,0.00024657,2]
[367175196,1750687846774,-490.0,0.00024657,2]
[367175197,1750687846783,-1030.62,0.00024657,2]
[367175198,1750687846793,-490.0,0.00024657,2]
[367175199,1750687846803,-490.0,0.00024657,2]
[367175200,1750687846815,-490.0,0.00024657,2]
[367175201,1750687846825,-500.0,0.00024657,2]
[367175202,1750687846834,-1767.59,0.00024657,2]
[367175203,1750687846843,-500.0,0.00024657,2]
[367175204,1750687846855,-500.0,0.00024657,2]
[367175205,1750687846864,-490.0,0.00024657,2]
[367175206,1750687846875,-500.0,0.00024657,2]
[367175207,1750687846887,-500.0,0.00024657,2]
[367175208,1750687846897,-490.0,0.00024657,2]
[367175209,1750687846906,-500.0,0.00024657,2]
[367175210,1750687846916,-300.0,0.00024657,2]
[367175211,1750687846925,-358.7,0.00024657,2]
[367175213,1750687846934,-490.0,0.00024657,2]
[367175215,1750687846943,-221.38270789,0.00024657,2]
[367175217,1750687846952,-931.15,0.00024657,2]
[367175218,1750687846962,-490.0,0.00024657,2]
[367175219,1750687846972,-1108.78,0.00024657,2]
[367175220,1750687846981,-490.0,0.00024657,2]
[367175222,1750687846991,-1679.2,0.00024657,2]
[367175224,1750687847000,-490.0,0.00024657,2]
[367175226,1750687847009,-490.0,0.00024657,2]
[367175228,1750687847019,-1469.43,0.00024657,2]
[367175230,1750687847033,-490.0,0.00024657,2]
[367175232,1750687847043,-968.96,0.00024657,2]
[367175234,1750687847053,-490.0,0.00024657,2]
[367175236,1750687847063,-622.84,0.00024657,2]
[367175238,1750687847073,-490.0,0.00024657,2]
[367175239,1750687847082,-490.0,0.00024657,2]
[367175240,1750687847092,-180.0,0.00024657,2]
[367175241,1750687847102,-490.0,0.00024657,2]
[367175242,1750687847112,-857.06,0.00024657,2]
[367175243,1750687847122,-1086.36,0.00024657,2]
[367175244,1750687847131,-490.0,0.00024657,2]
[367175245,1750687847141,-490.0,0.00024657,2]
[367175246,1750687847150,-490.0,0.00024657,2]
[367175247,1750687847159,-490.0,0.00024657,2]
[367175248,1750687847169,-977.0,0.00024657,2]
[367175249,1750687847178,-490.0,0.00024657,2]
[367175250,1750687847188,-490.0,0.00024657,2]
[367175251,1750687847197,-1232.76,0.00024657,2]
[367175252,1750687847206,-490.0,0.00024657,2]
[367175253,1750687847215,-1000.79,0.00024657,2]
[367175254,1750687847225,-1052.41,0.00024657,2]
[367175255,1750687847235,-1645.01,0.00024657,2]
[367175256,1750687847246,-2054.29,0.00024657,2]
[367175257,1750687847255,-1232.01,0.00024657,2]
[367175258,1750687847265,-490.0,0.00024657,2]
[367175259,1750687847277,-490.0,0.00024657,2]
[367175260,1750687847287,-490.0,0.00024657,2]
[367175261,1750687847296,-517.06,0.00024657,2]
[367175262,1750687847306,-830.34,0.00024657,2]
[367175263,1750687847316,-678.2,0.00024657,2]
[367175264,1750687847325,-490.0,0.00024657,2]
[367175265,1750687847335,-255.44587658,0.00024657,2]
[367175266,1750687847344,-490.0,0.00024657,2]
[367175267,1750687847353,-2163.64,0.00024657,2]
[367175268,1750687847363,-490.0,0.00024657,2]
[367175269,1750687847372,-490.0,0.00024657,2]
[367175270,1750687847382,-515.5,0.00024657,2]
[367175271,1750687847391,-490.0,0.00024657,2]
[367175272,1750687847401,-490.0,0.00024657,2]
[367175273,1750687847411,-490.0,0.00024657,2]
[367175274,1750687847420,-626.57514943,0.00024657,2]
[367175275,1750687847429,-512.27,0.00024657,2]
[367175276,1750687847439,-490.0,0.00024657,2]
[367175277,1750687847448,-490.0,0.00024657,2]
[367175278,1750687847458,-557.15,0.00024657,2]
[367175279,1750687847467,-2205.14,0.00024657,2]
[367175280,1750687847477,-490.0,0.00024657,2]
[367175281,1750687847487,-885.01,0.00024657,2]
[367175282,1750687847497,-765.48,0.00024657,2]
[367175284,1750687847507,-490.0,0.00024657,2]
[367175285,1750687847516,-5168.55,0.00024657,2]
[367175286,1750687847528,-1723.32,0.00024657,2]
[367175287,1750687847537,-490.0,0.00024657,2]
[367175288,1750687847547,-2107.44,0.00024657,2]
[367175289,1750687847556,-490.0,0.00024657,2]
[367175290,1750687847565,-490.0,0.00024657,2]
[367175291,1750687847575,-490.0,0.00024657,2]
[367175292,1750687847585,-786.31,0.00024657,2]
[367175293,1750687847595,-490.0,0.00024657,2]
[367175294,1750687847604,-584.19,0.00024657,2]
[367175295,1750687847613,-490.0,0.00024657,2]
[367175296,1750687847623,-1954.97,0.00024657,2]
[367175297,1750687847633,-5131.56,0.00024657,2]
[367175298,1750687847643,-490.0,0.00024657,2]
[367175299,1750687847652,-673.01,0.00024657,2]
[367175300,1750687847662,-490.0,0.00024657,2]
[367175301,1750687847671,-490.0,0.00024657,2]
[367175302,1750687847680,-1621.49,0.00024657,2]
[367175303,1750687847691,-1614.9,0.00024657,2]
[367175304,1750687847700,-490.0,0.00024657,2]
[367175305,1750687847709,-1656.68,0.00024657,2]
[367175306,1750687847719,-490.0,0.00024657,2]
[367175307,1750687847729,-282.50864154,0.00024657,2]
[367175308,1750687847739,-490.0,0.00024657,2]
[367175309,1750687847748,-151.0,0.00024657,2]
[367175310,1750687847759,-249.12128139,0.00024657,2]
[367175311,1750687847768,-914.76,0.00024657,2]
[367175312,1750687847779,-2045.91,0.00024657,2]
[367175313,1750687847996,-1326.89,0.00024657,2]
[367175314,1750687848006,-2022.01,0.00024657,2]
[367175315,1750687848016,-500.0,0.00024657,2]
[367175316,1750687848028,-500.0,0.00024657,2]
[367175317,1750687848039,-500.0,0.00024657,2]
[367175318,1750687848049,-6669.73,0.00024657,2]
[367175319,1750687848060,-1895.44,0.00024657,2]
[367175320,1750687848070,-1352.3,0.00024657,2]
[367175321,1750687848080,-490.0,0.00024657,2]
[367175322,1750687848090,-685.1,0.00024657,2]
[367175323,1750687848100,-3135.38,0.00024657,2]
[367175324,1750687848110,-490.0,0.00024657,2]
[367175325,1750687848120,-1180.64,0.00024657,2]
[367175326,1750687848130,-2051.32,0.00024657,2]
[367175327,1750687848139,-490.0,0.00024657,2]
[367175328,1750687848149,-490.0,0.00024657,2]
[367175329,1750687848158,-579.78,0.00024657,2]
[367175330,1750687848167,-781.71,0.00024657,2]
[367175331,1750687848176,-490.0,0.00024657,2]
[367175332,1750687848185,-490.0,0.00024657,2]
[367175333,1750687848195,-501.12880508,0.00024657,2]
[367175334,1750687848205,-150.39110727,0.00024657,2]
[367175335,1750687848215,-490.0,0.00024657,2]
[367175336,1750687848224,-1635.21,0.00024657,2]
[367175337,1750687848234,-1773.44,0.00024657,2]
[367175338,1750687848244,-490.0,0.00024657,2]
[367175339,1750687848253,-490.0,0.00024657,2]
[367175340,1750687848263,-490.0,0.00024657,2]
[367175341,1750687848272,-854.17,0.00024657,2]
[367175342,1750687848286,-490.0,0.00024657,2]
[367175343,1750687848296,-1562.68,0.00024657,2]
[367175344,1750687848305,-499.49,0.00024657,2]
[367175345,1750687848315,-490.0,0.00024657,2]
[367175346,1750687848325,-490.0,0.00024657,2]
[367175347,1750687848335,-1266.14,0.00024657,2]
[367175348,1750687848344,-626.06069466,0.00024657,2]
[367175349,1750687848354,-3378.1,0.00024657,2]
[367175350,1750687848363,-853.47,0.00024657,2]
[367175351,1750687848373,-490.0,0.00024657,2]
[367175352,1750687848383,-500.0,0.00024657,2]
[367175353,1750687848392,-1515.73,0.00024657,2]
[367175354,1750687848402,-547.75,0.00024657,2]
[367175355,1750687848411,-490.0,0.00024657,2]
[367175356,1750687848420,-490.0,0.00024657,2]
[367175357,1750687848429,-2679.6,0.00024657,2]
[367175358,1750687848439,-340.542459,0.00024657,2]
[367175359,1750687848449,-490.0,0.00024657,2]
[367175360,1750687848458,-1319.24,0.00024657,2]
[367175361,1750687848468,-509.59,0.00024657,2]
[367175362,1750687848478,-1667.66,0.00024657,2]
[367175363,1750687848487,-877.67,0.00024657,2]
[367175364,1750687848497,-209.51229502,0.00024657,2]
[367175365,1750687848507,-490.0,0.00024657,2]
[367175366,1750687848517,-490.0,0.00024657,2]
[367175367,1750687848532,-1168.41,0.00024657,2]
[367175368,1750687848542,-7214.48,0.00024657,2]
[367175369,1750687848552,-490.0,0.00024657,2]
[367175370,1750687848563,-305.83465636,0.00024657,2]
[367175371,1750687848573,-2188.97,0.00024657,2]
[367175372,1750687848582,-1757.88,0.00024657,2]
[367175373,1750687848592,-1556.94,0.00024657,2]
[367175374,1750687848601,-490.0,0.00024657,2]
[367175375,1750687848611,-490.0,0.00024657,2]
[367175376,1750687848620,-490.0,0.00024657,2]
[367175377,1750687848630,-1695.15,0.00024657,2]
[367175378,1750687848640,-1601.7,0.00024657,2]
[367175379,1750687848649,-490.0,0.00024657,2]
[367175380,1750687848659,-1519.95,0.00024657,2]
[367175381,1750687848668,-203.47884326,0.00024657,2]
[367175382,1750687848677,-1309.66,0.00024657,2]
[367175383,1750687848686,-514.42222422,0.00024657,2]
[367175384,1750687848696,-662.45,0.00024657,2]
[367175385,1750687848706,-490.0,0.00024657,2]
[367175386,1750687848715,-490.0,0.00024657,2]
[367175387,1750687848724,-745.57,0.00024657,2]
[367175388,1750687848734,-490.0,0.00024657,2]
[367175389,1750687848747,-490.0,0.00024657,2]
[367175390,1750687848756,-598.9,0.00024657,2]
[367175391,1750687848765,-490.0,0.00024657,2]
[367175392,1750687848777,-1885.24,0.00024657,2]
[367175393,1750687848787,-490.0,0.00024657,2]
[367175394,1750687848797,-1194.79,0.00024657,2]
[367175395,1750687848812,-490.0,0.00024657,2]
[367175396,1750687848823,-1137.78,0.00024657,2]
[367175397,1750687848833,-490.0,0.00024657,2]
[367175398,1750687848842,-1059.66,0.00024657,2]
[367175399,1750687848852,-533.93352536,0.00024657,2]
[367175400,1750687848862,-490.0,0.00024657,2]
[367175401,1750687848872,-581.38,0.00024657,2]
[367175402,1750687848882,-2895.37,0.00024657,2]
[367175403,1750687848895,-1234.34,0.00024657,2]
[367175404,1750687848905,-490.0,0.00024657,2]
[367175405,1750687848915,-796.15,0.00024657,2]
[367175406,1750687848925,-2575.79,0.00024657,2]
[367175407,1750687848935,-490.0,0.00024657,2]
[367175408,1750687848945,-761.98,0.00024657,2]
[367175409,1750687848955,-490.0,0.00024657,2]
[367175410,1750687848965,-1028.83,0.00024657,2]
[367175411,1750687848975,-259.27563019,0.00024657,2]
[367175412,1750687848986,-490.0,0.00024657,2]
[367175413,1750687848996,-490.0,0.00024657,2]
[367175414,1750687849007,-7648.23,0.00024657,2]
[367175415,1750687849018,-490.0,0.00024657,2]
[367175416,1750687849030,-1895.88,0.00024657,2]
[367175417,1750687849040,-662.38,0.00024657,2]
[367175418,1750687849049,-490.0,0.00024657,2]
[367175419,1750687849059,-490.0,0.00024657,2]
[367175420,1750687849069,-782.6,0.00024657,2]
[367175421,1750687849079,-704.24,0.00024657,2]
[367175422,1750687849089,-544.01,0.00024657,2]
[367175423,1750687849099,-572.62,0.00024657,2]
[367175424,1750687849108,-1655.28,0.00024657,2]
[367175425,1750687849118,-490.0,0.00024657,2]
[367175426,1750687849129,-1638.94,0.00024657,2]
[367175427,1750687849139,-927.27,0.00024657,2]
[367175428,1750687849150,-406.22349421,0.00024657,2]
[367175429,1750687849160,-490.0,0.00024657,2]
[367175430,1750687849169,-3077.74,0.00024657,2]
[367175431,1750687849179,-799.74,0.00024657,2]
[367175432,1750687849189,-490.0,0.00024657,2]
[367175433,1750687849199,-1223.43,0.00024657,2]
[367175434,1750687849209,-490.0,0.00024657,2]
[367175435,1750687849219,-490.0,0.00024657,2]
[367175436,1750687849229,-490.0,0.00024657,2]
[367175437,1750687849240,-384.65044729,0.00024657,2]
[367175438,1750687849250,-1602.53,0.00024657,2]
[367175439,1750687849260,-490.0,0.00024657,2]
[367175440,1750687849270,-490.0,0.00024657,2]
[367175441,1750687849280,-1178.52,0.00024657,2]
[367175442,1750687849290,-490.0,0.00024657,2]
[367175443,1750687849301,-8967.48,0.00024657,2]
[367175444,1750687849311,-1208.47,0.00024657,2]
[367175445,1750687849320,-10610.83,0.00024657,2]
[367175446,1750687849331,-490.0,0.00024657,2]
[367175447,1750687849340,-490.0,0.00024657,2]
[367175448,1750687849349,-1024.12,0.00024657,2]
[367175449,1750687849359,-715.73,0.00024657,2]
[367175450,1750687849368,-490.0,0.00024657,2]
[367175451,1750687849378,-490.0,0.00024657,2]
[367175452,1750687849388,-839.45,0.00024657,2]
[367175453,1750687849398,-490.0,0.00024657,2]
[367175454,1750687849408,-3217.85,0.00024657,2]
[367175455,1750687849418,-1615.76,0.00024657,2]
[367175456,1750687849428,-490.0,0.00024657,2]
[367175457,1750687849437,-846.38,0.00024657,2]
[367175458,1750687849448,-1172.35,0.00024657,2]
[367175459,1750687849458,-490.0,0.00024657,2]
[367175460,1750687849672,-490.0,0.00024657,2]
[367175461,1750687849696,-3413.22,0.00024657,2]
[367175462,1750687849706,-490.0,0.00024657,2]
[367175463,1750687849716,-490.0,0.00024657,2]
[367175464,1750687849725,-1516.82,0.00024657,2]
[367175465,1750687849736,-1526.72,0.00024657,2]
[367175466,1750687849746,-738.45,0.00024657,2]
[367175467,1750687849757,-238.47007096,0.00024657,2]
[367175468,1750687849767,-490.0,0.00024657,2]
[367175469,1750687849781,-490.0,0.00024657,2]
[367175470,1750687849791,-490.0,0.00024657,2]
[367175471,1750687849802,-490.0,0.00024657,2]
[367175472,1750687849813,-796.15,0.00024657,2]
[367175473,1750687849826,-1768.21,0.00024657,2]
[367175474,1750687849836,-490.0,0.00024657,2]
[367175475,1750687849846,-490.0,0.00024657,2]
[367175476,1750687849855,-4749.53,0.00024657,2]
[367175477,1750687849864,-502.81724557,0.00024657,2]
[367175478,1750687849874,-2204.1,0.00024657,2]
[367175479,1750687849884,-490.0,0.00024657,2]
[367175480,1750687849894,-500.0,0.00024657,2]
[367175481,1750687849904,-492.5,0.00024657,2]
[367175482,1750687849914,-1647.49,0.00024657,2]
[367175483,1750687849923,-500.0,0.00024657,2]
[367175484,1750687849933,-500.0,0.00024657,2]
[367175485,1750687849942,-490.0,0.00024657,2]
[367175486,1750687849952,-490.0,0.00024657,2]
[367175487,1750687849961,-490.0,0.00024657,2]
[367175488,1750687849971,-1844.86,0.00024657,2]
[367175489,1750687849981,-833.61,0.00024657,2]
[367175490,1750687849991,-1319.53,0.00024657,2]
[367175491,1750687850001,-755.55,0.00024657,2]
[367175492,1750687850011,-490.0,0.00024657,2]
[367175493,1750687850020,-490.0,0.00024657,2]
[367175494,1750687850033,-702.02,0.00024657,2]
[367175495,1750687850043,-1028.09,0.00024657,2]
[367175496,1750687850052,-1559.32,0.00024657,2]
[367175497,1750687850062,-2448.66,0.00024657,2]
[367175498,1750687850071,-1266.26,0.00024657,2]
[367175499,1750687850081,-13749.72,0.00024657,2]
[367175500,1750687850090,-668.18,0.00024657,2]
[367175501,1750687850100,-526.82,0.00024657,2]
[367175502,1750687850110,-490.0,0.00024657,2]
[367175503,1750687850119,-1611.56,0.00024657,2]
[367175504,1750687850129,-490.0,0.00024657,2]
[367175505,1750687850139,-490.0,0.00024657,2]
[367175506,1750687850148,-500.0,0.00024657,2]
[367175507,1750687850158,-500.0,0.00024657,2]
[367175508,1750687850167,-500.0,0.00024657,2]
[367175509,1750687850177,-1631.89,0.00024657,2]
[367175510,1750687850187,-2152.83,0.00024657,2]
[367175511,1750687850196,-2823.69,0.00024657,2]
[367175512,1750687850206,-490.0,0.00024657,2]
[367175513,1750687850216,-490.0,0.00024657,2]
[367175514,1750687850227,-2678.93,0.00024657,2]
[367175515,1750687850236,-490.0,0.00024657,2]
[367175516,1750687850247,-1884.05,0.00024657,2]
[367175517,1750687850256,-788.37,0.00024657,2]
[367175518,1750687850266,-490.0,0.00024657,2]
[367175519,1750687850282,-490.0,0.00024657,2]
[367175520,1750687850291,-1785.34,0.00024657,2]
[367175521,1750687850301,-1615.27,0.00024657,2]
[367175522,1750687850311,-760.89,0.00024657,2]
[367175523,1750687850322,-490.0,0.00024657,2]
[367175524,1750687850331,-4010.11,0.00024657,2]
[367175525,1750687850341,-793.5,0.00024657,2]
[367175526,1750687850350,-1360.86,0.00024657,2]
[367175527,1750687850365,-798.59,0.00024657,2]
[367175528,1750687850375,-490.0,0.00024657,2]
[367175529,1750687850384,-490.0,0.00024657,2]
[367175530,1750687850394,-2535.48,0.00024657,2]
[367175531,1750687850403,-1575.11,0.00024657,2]
[367175532,1750687850412,-231.66633021,0.00024657,2]
[367175533,1750687850422,-2381.75,0.00024657,2]
[367175534,1750687850431,-1830.15,0.00024657,2]
[367175535,1750687850440,-1570.9,0.00024657,2]
[367175536,1750687850450,-490.0,0.00024657,2]
[367175537,1750687850462,-490.0,0.00024657,2]
[367175538,1750687850474,-1672.75,0.00024657,2]
[367175539,1750687850484,-490.0,0.00024657,2]
[367175540,1750687850495,-490.0,0.00024657,2]
[367175541,1750687850505,-490.0,0.00024657,2]
[367175542,1750687850515,-2876.23,0.00024657,2]
[367175543,1750687850529,-981.61,0.00024657,2]
[367175544,1750687850540,-490.0,0.00024657,2]
[367175545,1750687850552,-490.0,0.00024657,2]
[367175546,1750687850561,-490.0,0.00024657,2]
[367175547,1750687850571,-490.0,0.00024657,2]
[367175548,1750687850580,-1714.91,0.00024657,2]
[367175549,1750687850591,-490.0,0.00024657,2]
[367175550,1750687850603,-510.91823709,0.00024657,2]
[367175551,1750687850614,-490.0,0.00024657,2]
[367175552,1750687850623,-490.0,0.00024657,2]
[367175553,1750687850633,-1580.24,0.00024657,2]
[367175554,1750687850643,-1668.6,0.00024657,2]
[367175555,1750687850653,-15188.49,0.00024657,2]
[367175556,1750687850663,-1927.29,0.00024657,2]
[367175557,1750687850673,-767.8,0.00024657,2]
[367175558,1750687850682,-508.00948786,0.00024657,2]
[367175559,1750687850692,-490.0,0.00024657,2]
[367175560,1750687850702,-677.68,0.00024657,2]
[367175561,1750687850712,-490.0,0.00024657,2]
[367175562,1750687850722,-490.0,0.00024657,2]
[367175563,1750687850731,-1618.86,0.00024657,2]
[367175564,1750687850741,-4204.05,0.00024657,2]
[367175565,1750687850750,-490.0,0.00024657,2]
[367175566,1750687850760,-1826.19,0.00024657,2]
[367175567,1750687850769,-320.0,0.00024657,2]
[367175568,1750687850780,-490.0,0.00024657,2]
[367175569,1750687850789,-1966.39,0.00024657,2]
[367175570,1750687850798,-490.0,0.00024657,2]
[367175571,1750687850809,-664.32,0.00024657,2]
[367175572,1750687850821,-490.0,0.00024657,2]
[367175573,1750687850831,-494.47379141,0.00024657,2]
[367175574,1750687850840,-1592.51,0.00024657,2]
[367175575,1750687850851,-979.56,0.00024657,2]
[367175576,1750687850860,-490.0,0.00024657,2]
[367175577,1750687850870,-1016.14,0.00024657,2]
[367175578,1750687850879,-910.76,0.00024657,2]
[367175579,1750687850890,-490.0,0.00024657,2]
[367175580,1750687850900,-2227.77,0.00024657,2]
[367175581,1750687850910,-4068.56,0.00024657,2]
[367175582,1750687850919,-490.0,0.00024657,2]
[367175583,1750687850929,-1418.13,0.00024657,2]
[367175584,1750687850938,-4300.44,0.00024657,2]
[367175585,1750687850949,-490.0,0.00024657,2]
[367175586,1750687850958,-490.0,0.00024657,2]
[367175587,1750687850969,-1296.44,0.00024657,2]
[367175588,1750687850978,-490.0,0.00024657,2]
[367175589,1750687850988,-490.0,0.00024657,2]
[367175590,1750687850998,-4054.21,0.00024657,2]
[367175591,1750687851007,-490.0,0.00024657,2]
[367175592,1750687851017,-1923.73,0.00024657,2]
[367175593,1750687851029,-1502.07,0.00024657,2]
[367175594,1750687851038,-698.88,0.00024657,2]
[367175595,1750687851048,-637.66,0.00024657,2]
[367175596,1750687851058,-490.0,0.00024657,2]
[367175597,1750687851068,-3983.72,0.00024657,2]
[367175598,1750687851078,-1929.1,0.00024657,2]
[367175599,1750687851087,-490.0,0.00024657,2]
[367175600,1750687851097,-490.0,0.00024657,2]
[367175601,1750687851107,-490.0,0.00024657,2]
[367175602,1750687851117,-1096.03,0.00024657,2]
[367175603,1750687851126,-492.76664575,0.00024657,2]
[367175604,1750687851137,-751.94,0.00024657,2]
[367175605,1750687851147,-1677.59,0.00024657,2]
[367175606,1750687851157,-1651.28,0.00024657,2]
[367175607,1750687851167,-490.0,0.00024657,2]
[367175608,1750687851177,-490.0,0.00024657,2]
[367175609,1750687851187,-1980.5,0.00024657,2]
[367175610,1750687851196,-231.02219155,0.00024657,2]
[367175611,1750687851206,-765.18,0.00024657,2]
[367175612,1750687851215,-1036.79,0.00024657,2]
[367175613,1750687851226,-1415.53,0.00024657,2]
[367175614,1750687851235,-726.6,0.00024657,2]
[367175615,1750687851245,-1216.15,0.00024657,2]
[367175616,1750687851255,-873.62,0.00024657,2]
[367175617,1750687851264,-7524.79,0.00024657,2]
[367175618,1750687851274,-490.0,0.00024657,2]
[367175619,1750687851286,-1629.47,0.00024657,2]
[367175620,1750687851296,-490.0,0.00024657,2]
[367175621,1750687851305,-490.0,0.00024657,2]
[367175622,1750687851315,-490.0,0.00024657,2]
[367175623,1750687851324,-1321.28,0.00024657,2]
[367175624,1750687851334,-1509.22,0.00024657,2]
[367175625,1750687851343,-4953.75,0.00024657,2]
[367175626,1750687851353,-1443.39,0.00024657,2]
[367175627,1750687851362,-4404.02,0.00024657,2]
[367175628,1750687851372,-629.72,0.00024657,2]
[367175629,1750687851381,-490.0,0.00024657,2]
[367175630,1750687851391,-490.0,0.00024657,2]
[367175631,1750687851401,-2013.14,0.00024657,2]
[367175632,1750687851410,-1005.47,0.00024657,2]
[367175633,1750687851420,-1249.92,0.00024657,2]
[367175634,1750687851430,-911.25,0.00024657,2]
[367175635,1750687851439,-490.0,0.00024657,2]
[367175636,1750687851449,-1331.94,0.00024657,2]
[367175637,1750687851459,-3127.52,0.00024657,2]
[367175638,1750687851468,-693.73,0.00024657,2]
[367175639,1750687851478,-193.13315156,0.00024657,2]
[367175640,1750687851488,-2324.37,0.00024657,2]
[367175641,1750687851498,-1677.36,0.00024657,2]
[367175642,1750687851508,-490.0,0.00024657,2]
[367175643,1750687851518,-1162.16,0.00024657,2]
[367175644,1750687851529,-490.0,0.00024657,2]
[367175645,1750687851539,-490.0,0.00024657,2]
[367175646,1750687851548,-1703.56,0.00024657,2]
[367175647,1750687851558,-490.0,0.00024657,2]
[367175648,1750687851568,-546.82,0.00024657,2]
[367175649,1750687851578,-490.0,0.00024657,2]
[367175650,1750687851587,-1550.7,0.00024657,2]
[367175651,1750687851597,-490.0,0.00024657,2]
[367175652,1750687851606,-763.6,0.00024657,2]
[367175653,1750687851616,-6145.3,0.00024657,2]
[367175654,1750687851625,-490.0,0.00024657,2]
[367175655,1750687851635,-1646.13,0.00024657,2]
[367175656,1750687851644,-490.0,0.00024657,2]
[367175657,1750687851654,-1481.03,0.00024657,2]
[367175658,1750687851664,-11761.46,0.00024657,2]
[367175659,1750687851673,-2942.0,0.00024657,2]
[367175660,1750687851682,-490.0,0.00024657,2]
[367175661,1750687851692,-544.34,0.00024657,2]
[367175662,1750687851702,-490.0,0.00024657,2]
[367175663,1750687851711,-5532.57,0.00024657,2]
[367175664,1750687851721,-553.41,0.00024657,2]
[367175665,1750687851731,-2471.17,0.00024657,2]
[367175666,1750687851740,-1306.16,0.00024657,2]
[367175667,1750687851750,-2924.05,0.00024657,2]
[367175668,1750687851760,-1809.87,0.00024657,2]
[367175669,1750687851769,-1451.65,0.00024657,2]
[367175670,1750687851783,-1474.59,0.00024657,2]
[367175671,1750687851792,-1357.57,0.00024657,2]
[367175672,1750687851802,-490.0,0.00024657,2]
[367175673,1750687851813,-1606.35,0.00024657,2]
[367175674,1750687851823,-731.85,0.00024657,2]
[367175675,1750687851832,-724.0,0.00024657,2]
[367175676,1750687851842,-1073.66,0.00024657,2]
[367175677,1750687851852,-8918.22,0.00024657,2]
[367175678,1750687851862,-765.02,0.00024657,2]
[367175679,1750687851872,-1747.4,0.00024657,2]
[367175680,1750687851881,-702.85,0.00024657,2]